Workbook

Sheet Overview
A1: 1 | B1: Designed to illustrate the energy and AS pricing results with RTC under AS surplus and shortage conditions by decomposing the current ORDC
B2: into a reserve demand curve for each AS
A3: 2 | B3: Assumptions
C4: VOLL = $9,000
C5: Offer Cap = $2,000
C6: Max Reserve Demand Curve Value = $9000
C7: No Congestion
C8: Generators available from 0 to HSL for Energy, available in quantities offered for each AS
C9: All RRS provided from generators for the purpose of this example
A10: 3 | B10: AS Demand Curves
C11: AS Demand Curve and Aggregate Demand Curve is approximated using composite historical RTOLCAP and RTOFFCAP values between 2014 and 2018
C12: These curves use the Post-NPRR863 AS Requirements for May 2019 HE17 (REGUP = 296, RRS = 2564, ECRS = 942, NSPIN = 511)
C13: The curves could change based on the AS Requirements each hour
C14: Simulating a different time period would require decomposing the applicable ORDC into the individual AS product demand curves
C15: 200 MW of REGUP and 1,800 MW of RRS are priced at $9,000
C16: Approx 25 MW of REGUP and 25 MW of RRS are priced at values that approximate the steps of the Current Power Balance Penalty Curve between $250/MWh and $2,250/MWh
C17: The remaining REGUP and RRS is priced at the approximate composite RTOLCAP and RTOFFCAP prices between 2,000 and 3,000 MW
C18: The full 942 MW of ECRS is priced between $1,750/MWh and $4,000/MWh
C19: The maximum value on the NSPIN demand curve is $1,500 and the curve extends out to 10,000 MW
C20: Tab 'Reserve Demand Curves Example' shows charts with the resulting individual and aggregate AS demand curves
A21: 4 | B21: Running a Case
C22: 'Rest of System' represents the sum of 50,000 MW of infra-marginal generation
C23: G1-G10 represent online generation with increasing energy offers and identical AS offer quantities
C24: G11-G15 represent quick-start that can provide Energy, ECRS, or NSPIN
C25: There is a field for a Capacity Offer Price for each reserve that is set to $0 in these examples
C26: In the optimization, AS shortages are represented as a cost
C27: The original excel sheet has been modified to only have 1 case that the user can modify.
C28: Tab 'Optimization Engine' contains the inputs and solution of the SOLVER Linear Program
C29: Tab 'Results Summary' contains tabular and graphical summaries of the SOLVER Linear Program result for the case run in the Optimization Engine tab
C30: Sensitivity Report and Answer Report contain the raw values from the SOLVER. The prices are copied from the results to the Optimizaiton Engine and Results Summary tabs

Sheet Reserve Demand Curves Example
A1: Note: This is only one example of a potential AS demand curve. Because of the limited capacity of Excel, these curves are blocky due to being broken into a small number of segments. In production the curves could contain many more segments and therefore be smoother.
A2: Aggregate AS Demand Curve | Q2: Projected Post NPRR863 AS Quantities (May-19 HE17)
A3: Bucket | B3: MW | C3: Cumulative | D3: AS Demand Curve | I3: Ancillary Service Demand Curves | Q3: Product | R3: Quantity
A4: REGUP1 | B4: =VLOOKUP(A4,I:J,2,FALSE) -> 200 | C4: =B4 -> 200 | D4: =VLOOKUP(A4,I:L,4,FALSE) -> 9000 | I4: REGUP | Q4: REGUP | R4: 296
A5: RRS1 | B5: =VLOOKUP(A5,I:J,2,FALSE) -> 1800 | C5: =B5+C4 -> 2000 | D5: =VLOOKUP(A5,I:L,4,FALSE) -> 9000 | I5: Breakpoint | J5: MW | K5: Cumulative MW | L5: $/MWh | Q5: RRS | R5: 2563.91
A6: PLACEHOLDER | B6: 0.0001 | C6: 2000.0001 | D6: =D7+1 -> 6501 | K6: =J6 -> 0 | L6: =L7 -> 9000 | Q6: ECRS | R6: 942.3719602
A7: REGUP2 | B7: =VLOOKUP(A7,I:J,2,FALSE) -> 5 | C7: 2005.0001 | D7: =VLOOKUP(A7,I:L,4,FALSE) -> 6500 | I7: REGUP1 | J7: 200 | K7: =J7 -> 200 | L7: 9000 | Q7: NSPIN | R7: 510.6280398
A8: RRS2 | B8: 54 | C8: 2059.0001 | D8: 6500 | I8: REGUP2 | J8: 5 | K8: =K7+J8 -> 205 | L8: 6500
A9: REGUP3 | B9: 30 | C9: 2089.0001 | D9: 5500 | I9: REGUP3 | J9: 30 | K9: =K8+J9 -> 235 | L9: 5500
A10: RRS3 | B10: 316 | C10: 2405.0001 | D10: 5500 | I10: REGUP4 | J10: 36 | K10: 271 | L10: 4500
A11: REGUP4 | B11: 36 | C11: 2441.0001 | D11: 4500 | I11: REGUP5 | J11: 5 | K11: 276 | L11: 2250
A12: RRS4 | B12: 369 | C12: 2810.0001 | D12: 4500 | I12: REGUP6 | J12: 5 | K12: 281 | L12: 1000
A13: ECRS1 | B13: 205 | C13: 3015.0001 | D13: 4000 | I13: REGUP7 | J13: 5 | K13: 286 | L13: 500
A14: ECRS2 | B14: 95 | C14: 3110.0001 | D14: 3750 | I14: REGUP8 | J14: 5 | K14: 291 | L14: 400
A15: ECRS3 | B15: 95 | C15: 3205.0001 | D15: 3500 | I15: REGUP9 | J15: 2.5 | K15: 293.5 | L15: 300
A16: ECRS4 | B16: 113 | C16: 3318.0001 | D16: 3250 | I16: REGUP10 | J16: 2.5 | K16: 296 | L16: 250
A17: ECRS5 | B17: 100 | C17: 3418.0001 | D17: 3000 | I17: Total: | J17: =SUM(J7:J16) -> 296
A18: ECRS6 | B18: 64 | C18: 3482.0001 | D18: 2750
A19: ECRS7 | B19: 79 | C19: 3561.0001 | D19: 2500 | I19: RRS
A20: REGUP5 | B20: 5 | C20: 3566.0001 | D20: 2250 | I20: Breakpoint | J20: MW | K20: Cumulative MW | L20: $/MWh
A21: RRS5 | B21: 5 | C21: 3571.0001 | D21: 2250 | K21: 0 | L21: =L22 -> 9000
A22: ECRS8 | B22: 81 | C22: 3652.0001 | D22: 2250 | I22: RRS1 | J22: 1800 | K22: =J22 -> 1800 | L22: 9000
A23: ECRS9 | B23: 68 | C23: 3720.0001 | D23: 2000 | I23: RRS2 | J23: 54 | K23: =K22+J23 -> 1854 | L23: 6500
A24: ECRS10 | B24: 42 | C24: 3762.0001 | D24: 1750 | I24: RRS3 | J24: 316 | K24: =K23+J24 -> 2170 | L24: 5500
A25: NSPIN1 | B25: 152 | C25: 3914.0001 | D25: 1500 | I25: RRS4 | J25: 369 | K25: 2539 | L25: 4500
A26: NSPIN2 | B26: 201 | C26: 4115.0001 | D26: 1250 | I26: RRS5 | J26: 5 | K26: 2544 | L26: 2250
A27: REGUP6 | B27: 5 | C27: 4120.0001 | D27: 1000 | I27: RRS6 | J27: 5 | K27: 2549 | L27: 1000
A28: RRS6 | B28: 5 | C28: 4125.0001 | D28: 1000 | I28: RRS7 | J28: 5 | K28: 2554 | L28: 500
A29: NSPIN3 | B29: 117 | C29: 4242.0001 | D29: 1000 | I29: RRS8 | J29: 5 | K29: 2559 | L29: 400
A30: NSPIN4 | B30: 169 | C30: 4411.0001 | D30: 750 | I30: RRS9 | J30: 2.5 | K30: 2561.5 | L30: 300
A31: NSPIN5 | B31: 86 | C31: 4497.0001 | D31: 625 | I31: RRS10 | J31: 2.5 | K31: 2564 | L31: 250
A32: REGUP7 | B32: 5 | C32: 4502.0001 | D32: 500 | I32: Total: | J32: =SUM(J22:J31) -> 2564
A33: RRS7 | B33: 5 | C33: 4507.0001 | D33: 500
A34: NSPIN6 | B34: 162 | C34: 4669.0001 | D34: 500 | I34: ECRS
A35: REGUP8 | B35: 5 | C35: 4674.0001 | D35: 400 | I35: Breakpoint | J35: MW | K35: Cumulative MW | L35: $/MWh
A36: RRS8 | B36: 5 | C36: 4679.0001 | D36: 400 | K36: 0 | L36: =L37 -> 4000
A37: NSPIN7 | B37: 210 | C37: 4889.0001 | D37: 375 | I37: ECRS1 | J37: 205 | K37: =J37 -> 205 | L37: 4000
A38: REGUP9 | B38: 2.5 | C38: 4891.5001 | D38: 300 | I38: ECRS2 | J38: 95 | K38: =K37+J38 -> 300 | L38: 3750
A39: RRS9 | B39: 2.5 | C39: 4894.0001 | D39: 300 | I39: ECRS3 | J39: 95 | K39: =K38+J39 -> 395 | L39: 3500
A40: REGUP10 | B40: 2.5 | C40: 4896.5001 | D40: 250 | I40: ECRS4 | J40: 113 | K40: 508 | L40: 3250
A41: RRS10 | B41: 2.5 | C41: 4899.0001 | D41: 250 | I41: ECRS5 | J41: 100 | K41: 608 | L41: 3000
A42: NSPIN8 | B42: 215 | C42: 5114.0001 | D42: 250 | I42: ECRS6 | J42: 64 | K42: =K41+J42 -> 672 | L42: 2750
A43: NSPIN9 | B43: 330 | C43: 5444.0001 | D43: 150 | I43: ECRS7 | J43: 79 | K43: 751 | L43: 2500
A44: NSPIN10 | B44: 276 | C44: 5720.0001 | D44: 100 | I44: ECRS8 | J44: 81 | K44: 832 | L44: 2250
A45: NSPIN11 | B45: 362 | C45: 6082.0001 | D45: 50 | I45: ECRS9 | J45: 68 | K45: 900 | L45: 2000
A46: NSPIN12 | B46: 419 | C46: 6501.0001 | D46: 25 | I46: ECRS10 | J46: 42 | K46: 942 | L46: 1750
A47: NSPIN13 | B47: 582 | C47: 7083.0001 | D47: 10 | I47: Total: | J47: =SUM(J37:J46) -> 942
A48: NSPIN14 | B48: 1237 | C48: 8320.0001 | D48: 1
A49: NSPIN15 | B49: 1680 | C49: 10000.0001 | D49: 0.01 | I49: NSPIN
I50: Breakpoint | J50: MW | K50: Cumulative MW | L50: $/MWh
K51: 0 | L51: =L52 -> 1500
I52: NSPIN1 | J52: 152 | K52: =J52 -> 152 | L52: 1500
I53: NSPIN2 | J53: 201 | K53: =K52+J53 -> 353 | L53: 1250
I54: NSPIN3 | J54: 117 | K54: =K53+J54 -> 470 | L54: 1000
I55: NSPIN4 | J55: 169 | K55: 639 | L55: 750
I56: NSPIN5 | J56: 86 | K56: 725 | L56: 625
I57: NSPIN6 | J57: 162 | K57: 887 | L57: 500
I58: NSPIN7 | J58: 210 | K58: 1097 | L58: 375
I59: NSPIN8 | J59: 215 | K59: 1312 | L59: 250
I60: NSPIN9 | J60: 330 | K60: 1642 | L60: 150
I61: NSPIN10 | J61: 276 | K61: 1918 | L61: 100
I62: NSPIN11 | J62: 362 | K62: 2280 | L62: 50
I63: NSPIN12 | J63: 419 | K63: 2699 | L63: 25
I64: NSPIN13 | J64: 582 | K64: 3281 | L64: 10
I65: NSPIN14 | J65: 1237 | K65: 4518 | L65: 1
I66: NSPIN15 | J66: 1680 | K66: 6198 | L66: 0.01
I67: Total: | J67: =SUM(J52:J66) -> 6198

Sheet Optimization Engine
A1: Modify grey cells and click 'Solve' to view results. White cells should not be modified. | D1: Energy Offers and Awards | I1: REGUP Offers and Awards | N1: RRS Offers and Awards | S1: ECRS Offers and Awards | X1: NSPIN Offers and Awards | AC1: Total Awarded Capacity
B2: Generator | C2: HSL | D2: Offer Qty | E2: Offer Price | F2: Awarded Qty | G2: Energy Cost | I2: Offer Qty | J2: Offer Price | K2: Awarded Qty | L2: Award Cost | N2: Offer Qty | O2: Offer Price | P2: Awarded Qty | Q2: Award Cost | S2: Offer Qty | T2: Offer Price | U2: Awarded Qty | V2: Award Cost | X2: Offer Qty | Y2: Offer Price | Z2: Awarded Qty | AA2: Award Cost
B3: Rest of System | C3: 50000 | D3: 50000 | E3: 25 | F3: 49571 | G3: =F3*E3 -> 1239275 | I3: 2500 | J3: 0 | K3: 0 | L3: =K3*J3 -> 0 | N3: =0.2*C3 -> 10000 | O3: 0 | P3: 429 | Q3: =P3*O3 -> 0 | S3: 50000 | T3: 0 | U3: 0 | V3: =U3*T3 -> 0 | X3: 50000 | Y3: 0 | Z3: 0 | AA3: =Z3*Y3 -> 0 | AC3: =F3+K3+P3+U3+Z3 -> 50000
B4: G1 | C4: 1000 | D4: 1000 | E4: 30 | F4: 800 | G4: =F4*E4 -> 24000 | I4: 50 | J4: 0 | K4: 0 | L4: =K4*J4 -> 0 | N4: 200 | O4: 0 | P4: 200 | Q4: =P4*O4 -> 0 | S4: 1000 | T4: 0 | U4: 0 | V4: =U4*T4 -> 0 | X4: 1000 | Y4: 0 | Z4: 0 | AA4: =Z4*Y4 -> 0 | AC4: =F4+K4+P4+U4+Z4 -> 1000
B5: G2 | C5: 1000 | D5: 1000 | E5: 35 | F5: 800 | G5: 28000 | I5: 50 | J5: 0 | K5: 0 | L5: 0 | N5: 200 | O5: 0 | P5: 200 | Q5: 0 | S5: 1000 | T5: 0 | U5: 0 | V5: 0 | X5: 1000 | Y5: 0 | Z5: 0 | AA5: 0 | AC5: 1000
B6: G3 | C6: 1000 | D6: 1000 | E6: 40 | F6: 800 | G6: 32000 | I6: 50 | J6: 0 | K6: 0 | L6: 0 | N6: 200 | O6: 0 | P6: 200 | Q6: 0 | S6: 1000 | T6: 0 | U6: 0 | V6: 0 | X6: 1000 | Y6: 0 | Z6: 0 | AA6: 0 | AC6: 1000
B7: G4 | C7: 1000 | D7: 1000 | E7: 45 | F7: 800 | G7: 36000 | I7: 50 | J7: 0 | K7: 0 | L7: 0 | N7: 200 | O7: 0 | P7: 200 | Q7: 0 | S7: 1000 | T7: 0 | U7: 0 | V7: 0 | X7: 1000 | Y7: 0 | Z7: 0 | AA7: 0 | AC7: 1000
B8: G5 | C8: 1000 | D8: 1000 | E8: 50 | F8: 779 | G8: 38950 | I8: 50 | J8: 0 | K8: 21 | L8: 0 | N8: 200 | O8: 0 | P8: 200 | Q8: 0 | S8: 1000 | T8: 0 | U8: 0 | V8: 0 | X8: 1000 | Y8: 0 | Z8: 0 | AA8: 0 | AC8: 1000
B9: G6 | C9: 1000 | D9: 1000 | E9: 55 | F9: 750 | G9: 41250 | I9: 50 | J9: 0 | K9: 50 | L9: 0 | N9: 200 | O9: 0 | P9: 200 | Q9: 0 | S9: 1000 | T9: 0 | U9: 0 | V9: 0 | X9: 1000 | Y9: 0 | Z9: 0 | AA9: 0 | AC9: 1000
B10: G7 | C10: 1000 | D10: 1000 | E10: 60 | F10: 750 | G10: 45000 | I10: 50 | J10: 0 | K10: 50 | L10: 0 | N10: 200 | O10: 0 | P10: 200 | Q10: 0 | S10: 1000 | T10: 0 | U10: 0 | V10: 0 | X10: 1000 | Y10: 0 | Z10: 0 | AA10: 0 | AC10: 1000
B11: G8 | C11: 1000 | D11: 1000 | E11: 65 | F11: 750 | G11: 48750 | I11: 50 | J11: 0 | K11: 50 | L11: 0 | N11: 200 | O11: 0 | P11: 200 | Q11: 0 | S11: 1000 | T11: 0 | U11: 0 | V11: 0 | X11: 1000 | Y11: 0 | Z11: 0 | AA11: 0 | AC11: 1000
B12: G9 | C12: 1000 | D12: 1000 | E12: 70 | F12: 750 | G12: 52500 | I12: 50 | J12: 0 | K12: 50 | L12: 0 | N12: 200 | O12: 0 | P12: 200 | Q12: 0 | S12: 1000 | T12: 0 | U12: 0 | V12: 0 | X12: 1000 | Y12: 0 | Z12: 0 | AA12: 0 | AC12: 1000
B13: G10 | C13: 1000 | D13: 1000 | E13: 75 | F13: 750 | G13: 56250 | I13: 50 | J13: 0 | K13: 50 | L13: 0 | N13: 200 | O13: 0 | P13: 200 | Q13: 0 | S13: 1000 | T13: 0 | U13: 0 | V13: 0 | X13: 1000 | Y13: 0 | Z13: 0 | AA13: 0 | AC13: 1000
B14: G11 | C14: 500 | D14: 500 | E14: 80 | F14: 500 | G14: 40000 | I14: 0 | J14: 0 | K14: 0 | L14: 0 | N14: 0 | O14: 0 | P14: 0 | Q14: 0 | S14: 500 | T14: 0 | U14: 0 | V14: 0 | X14: 500 | Y14: 0 | Z14: 0 | AA14: 0 | AC14: =F14+K14+P14+U14+Z14 -> 500
B15: G12 | C15: 500 | D15: 500 | E15: 100 | F15: 500 | G15: 50000 | I15: 0 | J15: 0 | K15: 0 | L15: 0 | N15: 0 | O15: 0 | P15: 0 | Q15: 0 | S15: 500 | T15: 0 | U15: 0 | V15: 0 | X15: 500 | Y15: 0 | Z15: 0 | AA15: 0 | AC15: 500
B16: G13 | C16: 500 | D16: 500 | E16: 150 | F16: 500 | G16: 75000 | I16: 0 | J16: 0 | K16: 0 | L16: 0 | N16: 0 | O16: 0 | P16: 0 | Q16: 0 | S16: 500 | T16: 0 | U16: 0 | V16: 0 | X16: 500 | Y16: 0 | Z16: 0 | AA16: 0 | AC16: 500
B17: G14 | C17: 500 | D17: 500 | E17: 250 | F17: 500 | G17: 125000 | I17: 0 | J17: 0 | K17: 0 | L17: 0 | N17: 0 | O17: 0 | P17: 0 | Q17: 0 | S17: 500 | T17: 0 | U17: 0 | V17: 0 | X17: 500 | Y17: 0 | Z17: 0 | AA17: 0 | AC17: 500
B18: G15 | C18: 500 | D18: 500 | E18: 1000 | F18: 200 | G18: 200000 | I18: 0 | J18: 0 | K18: 0 | L18: 0 | N18: 0 | O18: 0 | P18: 0 | Q18: 0 | S18: 500 | T18: 0 | U18: 300 | V18: 0 | X18: 500 | Y18: 0 | Z18: 0 | AA18: 0 | AC18: 500
B19: Power Balance Penalty | C19: 10000 | D19: 10000 | E19: 11001 | F19: 0 | G19: 0 | AC19: =F19 -> 0
B20: Totals with Power Balance Penalty | C20: =SUM(C3:C19) -> 72500 | D20: =SUM(D3:D19) -> 72500 | F20: =SUM(F3:F19) -> 59500 | G20: =SUM(G3:G19) -> 2131975 | I20: =SUM(I3:I19) -> 3000 | K20: =SUM(K3:K19) -> 271 | L20: =SUM(L3:L19) -> 0 | N20: =SUM(N3:N19) -> 12000 | P20: =SUM(P3:P19) -> 2429 | Q20: =SUM(Q3:Q19) -> 0 | S20: =SUM(S3:S19) -> 62500 | U20: =SUM(U3:U19) -> 300 | V20: =SUM(V3:V19) -> 0 | X20: =SUM(X3:X19) -> 62500 | Z20: =SUM(Z3:Z19) -> 0 | AA20: =SUM(AA3:AA19) -> 0 | AC20: =SUM(AC3:AC19) -> 62500
B21: Totals - Generators Only | C21: =SUM(C3:C18) -> 62500 | D21: =SUM(D3:D18) -> 62500 | F21: 59500 | G21: =SUM(G3:G18) -> 2131975
A22: System Inputs (MW) | C22: As an example, change 'Demand' value to 56,000 and click solve. The objective function and output prices will update along with the awarded and solution quantities for the 7 tables. The 'Results Summary' tab will summarize the real-time co-optimized solution.
A23: Demand | B23: 59500 | I23: REGUP Shortage | N23: RRS Shortage | S23: ECRS Shortage | X23: NSPIN Shortage
A24: Max REGUP Demand Curve Qty | B24: 296 | I24: Demand Curve Qty | J24: Demand Curve Price | K24: Solution Qty | L24: Penalty Cost | N24: Demand Curve Qty | O24: Demand Curve Price | P24: Solution Qty | Q24: Penalty Cost | S24: Demand Curve Qty | T24: Demand Curve Price | U24: Solution Qty | V24: Penalty Cost | X24: Demand Curve Qty | Y24: Demand Curve Price | Z24: Solution Qty | AA24: Penalty Cost
A25: Max RRS Demand Curve Qty | B25: 2564 | I25: ='Reserve Demand Curves Example'!$J7 -> 200 | J25: ='Reserve Demand Curves Example'!$L7 -> 9000 | K25: 0 | L25: =K25*J25 -> 0 | N25: ='Reserve Demand Curves Example'!$J22 -> 1800 | O25: ='Reserve Demand Curves Example'!$L22 -> 9000 | P25: 0 | Q25: =P25*O25 -> 0 | S25: ='Reserve Demand Curves Example'!$J37 -> 205 | T25: ='Reserve Demand Curves Example'!$L37 -> 4000 | U25: 0 | V25: =U25*T25 -> 0 | X25: ='Reserve Demand Curves Example'!$J52 -> 152 | Y25: ='Reserve Demand Curves Example'!$L52 -> 1500 | Z25: 151.9 | AA25: =Z25*Y25 -> 227850
A26: Max ECRS Demand Curve Qty | B26: 942 | I26: ='Reserve Demand Curves Example'!$J8 -> 5 | J26: ='Reserve Demand Curves Example'!$L8 -> 6500 | K26: 0 | L26: =K26*J26 -> 0 | N26: ='Reserve Demand Curves Example'!$J23 -> 54 | O26: ='Reserve Demand Curves Example'!$L23 -> 6500 | P26: 0 | Q26: =P26*O26 -> 0 | S26: ='Reserve Demand Curves Example'!$J38 -> 95 | T26: ='Reserve Demand Curves Example'!$L38 -> 3750 | U26: 0 | V26: =U26*T26 -> 0 | X26: ='Reserve Demand Curves Example'!$J53 -> 201 | Y26: ='Reserve Demand Curves Example'!$L53 -> 1250 | Z26: 201 | AA26: =Z26*Y26 -> 251250
A27: Max NSPIN Demand Curve Qty | B27: 6198 | I27: ='Reserve Demand Curves Example'!$J9 -> 30 | J27: ='Reserve Demand Curves Example'!$L9 -> 5500 | K27: 0 | L27: 0 | N27: ='Reserve Demand Curves Example'!$J24 -> 316 | O27: ='Reserve Demand Curves Example'!$L24 -> 5500 | P27: 0 | Q27: 0 | S27: ='Reserve Demand Curves Example'!$J39 -> 95 | T27: ='Reserve Demand Curves Example'!$L39 -> 3500 | U27: 95 | V27: 332500 | X27: ='Reserve Demand Curves Example'!$J54 -> 117 | Y27: ='Reserve Demand Curves Example'!$L54 -> 1000 | Z27: 117 | AA27: 117000
I28: ='Reserve Demand Curves Example'!$J10 -> 36 | J28: ='Reserve Demand Curves Example'!$L10 -> 4500 | K28: 0 | L28: 0 | N28: ='Reserve Demand Curves Example'!$J25 -> 369 | O28: ='Reserve Demand Curves Example'!$L25 -> 4500 | P28: 110 | Q28: 495000 | S28: ='Reserve Demand Curves Example'!$J40 -> 113 | T28: ='Reserve Demand Curves Example'!$L40 -> 3250 | U28: 113 | V28: 367250 | X28: ='Reserve Demand Curves Example'!$J55 -> 169 | Y28: ='Reserve Demand Curves Example'!$L55 -> 750 | Z28: 169 | AA28: 126750
A29: Objective Function | B29: =G20+L20+L35+Q20+V20+Q35+V35+AA20+AA40 -> 5537849.17 | I29: ='Reserve Demand Curves Example'!$J11 -> 5 | J29: ='Reserve Demand Curves Example'!$L11 -> 2250 | K29: 5 | L29: 11250 | N29: ='Reserve Demand Curves Example'!$J26 -> 5 | O29: ='Reserve Demand Curves Example'!$L26 -> 2250 | P29: 5 | Q29: 11250 | S29: ='Reserve Demand Curves Example'!$J41 -> 100 | T29: ='Reserve Demand Curves Example'!$L41 -> 3000 | U29: 100 | V29: 300000 | X29: ='Reserve Demand Curves Example'!$J56 -> 86 | Y29: ='Reserve Demand Curves Example'!$L56 -> 625 | Z29: 86 | AA29: 53750
I30: ='Reserve Demand Curves Example'!$J12 -> 5 | J30: ='Reserve Demand Curves Example'!$L12 -> 1000 | K30: 5 | L30: 5000 | N30: ='Reserve Demand Curves Example'!$J27 -> 5 | O30: ='Reserve Demand Curves Example'!$L27 -> 1000 | P30: 5 | Q30: 5000 | S30: ='Reserve Demand Curves Example'!$J42 -> 64 | T30: ='Reserve Demand Curves Example'!$L42 -> 2750 | U30: 64 | V30: 176000 | X30: ='Reserve Demand Curves Example'!$J57 -> 162 | Y30: ='Reserve Demand Curves Example'!$L57 -> 500 | Z30: 162 | AA30: =Z30*Y30 -> 81000
A31: Output Prices ($/MWh) | I31: ='Reserve Demand Curves Example'!$J13 -> 5 | J31: ='Reserve Demand Curves Example'!$L13 -> 500 | K31: 5 | L31: =K31*J31 -> 2500 | N31: ='Reserve Demand Curves Example'!$J28 -> 5 | O31: ='Reserve Demand Curves Example'!$L28 -> 500 | P31: 5 | Q31: 2500 | S31: ='Reserve Demand Curves Example'!$J43 -> 79 | T31: ='Reserve Demand Curves Example'!$L43 -> 2500 | U31: 79 | V31: 197500 | X31: ='Reserve Demand Curves Example'!$J58 -> 210 | Y31: ='Reserve Demand Curves Example'!$L58 -> 375 | Z31: 210 | AA31: 78750
A32: Energy | B32: 4525 | I32: ='Reserve Demand Curves Example'!$J14 -> 5 | J32: ='Reserve Demand Curves Example'!$L14 -> 400 | K32: 5 | L32: 2000 | N32: ='Reserve Demand Curves Example'!$J29 -> 5 | O32: ='Reserve Demand Curves Example'!$L29 -> 400 | P32: 5 | Q32: 2000 | S32: ='Reserve Demand Curves Example'!$J44 -> 81 | T32: ='Reserve Demand Curves Example'!$L44 -> 2250 | U32: 81 | V32: 182250 | X32: ='Reserve Demand Curves Example'!$J59 -> 215 | Y32: ='Reserve Demand Curves Example'!$L59 -> 250 | Z32: 215 | AA32: 53750
A33: REGUP | B33: 4475 | I33: ='Reserve Demand Curves Example'!$J15 -> 2.5 | J33: ='Reserve Demand Curves Example'!$L15 -> 300 | K33: 2.5 | L33: 750 | N33: ='Reserve Demand Curves Example'!$J30 -> 2.5 | O33: ='Reserve Demand Curves Example'!$L30 -> 300 | P33: 2.5 | Q33: 750 | S33: ='Reserve Demand Curves Example'!$J45 -> 68 | T33: ='Reserve Demand Curves Example'!$L45 -> 2000 | U33: 68 | V33: 136000 | X33: ='Reserve Demand Curves Example'!$J60 -> 330 | Y33: ='Reserve Demand Curves Example'!$L60 -> 150 | Z33: 330 | AA33: 49500
A34: RRS | B34: 4500 | I34: ='Reserve Demand Curves Example'!$J16 -> 2.5 | J34: ='Reserve Demand Curves Example'!$L16 -> 250 | K34: 2.5 | L34: 625 | N34: ='Reserve Demand Curves Example'!$J31 -> 2.5 | O34: ='Reserve Demand Curves Example'!$L31 -> 250 | P34: 2.5 | Q34: 625 | S34: ='Reserve Demand Curves Example'!$J46 -> 42 | T34: ='Reserve Demand Curves Example'!$L46 -> 1750 | U34: 42 | V34: 73500 | X34: ='Reserve Demand Curves Example'!$J61 -> 276 | Y34: ='Reserve Demand Curves Example'!$L61 -> 100 | Z34: 276 | AA34: 27600
A35: ECRS | B35: 3525 | I35: =SUM(I25:I34) -> 296 | K35: =SUM(K25:K34) -> 25 | L35: =SUM(L25:L34) -> 22125 | N35: =SUM(N25:N34) -> 2564 | P35: =SUM(P25:P34) -> 135 | Q35: =SUM(Q25:Q34) -> 517125 | S35: =SUM(S25:S34) -> 942 | U35: =SUM(U25:U34) -> 642 | V35: =SUM(V25:V34) -> 1765000 | X35: ='Reserve Demand Curves Example'!$J62 -> 362 | Y35: ='Reserve Demand Curves Example'!$L62 -> 50 | Z35: 362 | AA35: 18100
A36: NSPIN | B36: 1500 | X36: ='Reserve Demand Curves Example'!$J63 -> 419 | Y36: ='Reserve Demand Curves Example'!$L63 -> 25 | Z36: 419 | AA36: 10475
I37: REGUP Awarded + Shortage Qty | K37: =K20+K35 -> 296 | N37: RRS Awarded + Shortage Qty | P37: =P20+P35 -> 2564 | S37: ECRS Awarded + Shortage Qty | U37: =U20+U35 -> 942 | X37: ='Reserve Demand Curves Example'!$J64 -> 582 | Y37: ='Reserve Demand Curves Example'!$L64 -> 10 | Z37: 582 | AA37: 5820
I38: * Example does not accont for REGUP being carried by Load Resources | N38: * Example does not accont for RRS being carried by UFR or Other Load Resources | S38: * Example does not accont for ECRS being carried by Load Resources | X38: 2917 | Y38: 0.01 | Z38: 2917 | AA38: 29.17
X39: 0.1 | Y39: 0 | Z39: 0.1 | AA39: 0
X40: =SUM(X25:X39) -> 6198.1 | Z40: =SUM(Z25:Z39) -> 6198 | AA40: =SUM(AA25:AA39) -> 1101624.17
X42: NSPIN Awarded + Shortage Qty | Z42: =Z20+Z40 -> 6198
X43: * Example does not accont for NSPIN being carried by Load Resources

Sheet Results Summary
B1: Awarded MW
B2: Energy | C2: REGUP | D2: RRS | E2: ECRS | F2: NSPIN
A3: G1 | B3: ='Optimization Engine'!F4 -> 800 | C3: ='Optimization Engine'!K4 -> 0 | D3: ='Optimization Engine'!P4 -> 200 | E3: ='Optimization Engine'!U4 -> 0 | F3: ='Optimization Engine'!Z4 -> 0
A4: G2 | B4: ='Optimization Engine'!F5 -> 800 | C4: ='Optimization Engine'!K5 -> 0 | D4: ='Optimization Engine'!P5 -> 200 | E4: ='Optimization Engine'!U5 -> 0 | F4: ='Optimization Engine'!Z5 -> 0
A5: G3 | B5: ='Optimization Engine'!F6 -> 800 | C5: ='Optimization Engine'!K6 -> 0 | D5: ='Optimization Engine'!P6 -> 200 | E5: ='Optimization Engine'!U6 -> 0 | F5: ='Optimization Engine'!Z6 -> 0
A6: G4 | B6: ='Optimization Engine'!F7 -> 800 | C6: ='Optimization Engine'!K7 -> 0 | D6: ='Optimization Engine'!P7 -> 200 | E6: ='Optimization Engine'!U7 -> 0 | F6: ='Optimization Engine'!Z7 -> 0
A7: G5 | B7: ='Optimization Engine'!F8 -> 779 | C7: ='Optimization Engine'!K8 -> 21 | D7: ='Optimization Engine'!P8 -> 200 | E7: ='Optimization Engine'!U8 -> 0 | F7: ='Optimization Engine'!Z8 -> 0
A8: G6 | B8: ='Optimization Engine'!F9 -> 750 | C8: ='Optimization Engine'!K9 -> 50 | D8: ='Optimization Engine'!P9 -> 200 | E8: ='Optimization Engine'!U9 -> 0 | F8: ='Optimization Engine'!Z9 -> 0
A9: G7 | B9: ='Optimization Engine'!F10 -> 750 | C9: ='Optimization Engine'!K10 -> 50 | D9: ='Optimization Engine'!P10 -> 200 | E9: ='Optimization Engine'!U10 -> 0 | F9: ='Optimization Engine'!Z10 -> 0
A10: G8 | B10: ='Optimization Engine'!F11 -> 750 | C10: ='Optimization Engine'!K11 -> 50 | D10: ='Optimization Engine'!P11 -> 200 | E10: ='Optimization Engine'!U11 -> 0 | F10: ='Optimization Engine'!Z11 -> 0
A11: G9 | B11: ='Optimization Engine'!F12 -> 750 | C11: ='Optimization Engine'!K12 -> 50 | D11: ='Optimization Engine'!P12 -> 200 | E11: ='Optimization Engine'!U12 -> 0 | F11: ='Optimization Engine'!Z12 -> 0
A12: G10 | B12: ='Optimization Engine'!F13 -> 750 | C12: ='Optimization Engine'!K13 -> 50 | D12: ='Optimization Engine'!P13 -> 200 | E12: ='Optimization Engine'!U13 -> 0 | F12: ='Optimization Engine'!Z13 -> 0
A13: G11 | B13: ='Optimization Engine'!F14 -> 500 | C13: ='Optimization Engine'!K14 -> 0 | D13: ='Optimization Engine'!P14 -> 0 | E13: ='Optimization Engine'!U14 -> 0 | F13: ='Optimization Engine'!Z14 -> 0
A14: G12 | B14: ='Optimization Engine'!F15 -> 500 | C14: ='Optimization Engine'!K15 -> 0 | D14: ='Optimization Engine'!P15 -> 0 | E14: ='Optimization Engine'!U15 -> 0 | F14: ='Optimization Engine'!Z15 -> 0
A15: G13 | B15: ='Optimization Engine'!F16 -> 500 | C15: ='Optimization Engine'!K16 -> 0 | D15: ='Optimization Engine'!P16 -> 0 | E15: ='Optimization Engine'!U16 -> 0 | F15: ='Optimization Engine'!Z16 -> 0
A16: G14 | B16: ='Optimization Engine'!F17 -> 500 | C16: ='Optimization Engine'!K17 -> 0 | D16: ='Optimization Engine'!P17 -> 0 | E16: ='Optimization Engine'!U17 -> 0 | F16: ='Optimization Engine'!Z17 -> 0
A17: G15 | B17: ='Optimization Engine'!F18 -> 200 | C17: ='Optimization Engine'!K18 -> 0 | D17: ='Optimization Engine'!P18 -> 0 | E17: ='Optimization Engine'!U18 -> 300 | F17: ='Optimization Engine'!Z18 -> 0
A18: Award | C18: ='Optimization Engine'!K20 -> 271 | D18: ='Optimization Engine'!P20 -> 2429 | E18: ='Optimization Engine'!U20 -> 300 | F18: ='Optimization Engine'!Z20 -> 0
A19: Posted AS Requirement | C19: ='Reserve Demand Curves Example'!R4 -> 296 | D19: ='Reserve Demand Curves Example'!R5 -> 2563.91 | E19: ='Reserve Demand Curves Example'!R6 -> 942.3719602 | F19: ='Reserve Demand Curves Example'!R7 -> 510.6280398
A21: Price ($/MWh) | B21: ='Optimization Engine'!$B$32 -> 4525 | C21: ='Optimization Engine'!$B$33 -> 4475 | D21: ='Optimization Engine'!$B$34 -> 4500 | E21: ='Optimization Engine'!$B$35 -> 3525 | F21: ='Optimization Engine'!$B$36 -> 1500

Sheet Answer Report
A1: Microsoft Excel 15.0 Answer Report
A2: Worksheet: [Real-Time_Co-optimization_-_Automated_Scenario_Analysis_-_Update_Ver5_2.xlsm]Optimization Engine
A3: Report Created: 7/16/2019 3:07:56 PM
A4: Result: Label1
A5: Solver Engine
B6: Engine: Simplex LP
B7: Solution Time: 29.687 Seconds.
B8: Iterations: 104 Subproblems: 0
A9: Solver Options
B10: Max Time 100 sec, Iterations 1000, Precision 0.000001
B11: Max Subproblems Unlimited, Max Integer Sols Unlimited, Integer Tolerance 0.01%, Solve Without Integer Constraints, Assume NonNegative
A14: Objective Cell (Max)
B15: Cell | C15: Name | D15: Original Value | E15: Final Value
B16: $B$29 | C16: Objective Function Totals - Generators Only | D16: 5537849.17 | E16: 5537849.17
A19: Variable Cells
B20: Cell | C20: Name | D20: Original Value | E20: Final Value | F20: Integer
B21: $F$3 | C21: Rest of System Awarded Qty | D21: 49571 | E21: 49571 | F21: Contin
B22: $F$4 | C22: G1 Awarded Qty | D22: 800 | E22: 800 | F22: Contin
B23: $F$5 | C23: G2 Awarded Qty | D23: 800 | E23: 800 | F23: Contin
B24: $F$6 | C24: G3 Awarded Qty | D24: 800 | E24: 800 | F24: Contin
B25: $F$7 | C25: G4 Awarded Qty | D25: 800 | E25: 800 | F25: Contin
B26: $F$8 | C26: G5 Awarded Qty | D26: 779 | E26: 779 | F26: Contin
B27: $F$9 | C27: G6 Awarded Qty | D27: 750 | E27: 750 | F27: Contin
B28: $F$10 | C28: G7 Awarded Qty | D28: 750 | E28: 750 | F28: Contin
B29: $F$11 | C29: G8 Awarded Qty | D29: 750 | E29: 750 | F29: Contin
B30: $F$12 | C30: G9 Awarded Qty | D30: 750 | E30: 750 | F30: Contin
B31: $F$13 | C31: G10 Awarded Qty | D31: 750 | E31: 750 | F31: Contin
B32: $F$14 | C32: G11 Awarded Qty | D32: 500 | E32: 500 | F32: Contin
B33: $F$15 | C33: G12 Awarded Qty | D33: 500 | E33: 500 | F33: Contin
B34: $F$16 | C34: G13 Awarded Qty | D34: 500 | E34: 500 | F34: Contin
B35: $F$17 | C35: G14 Awarded Qty | D35: 500 | E35: 500 | F35: Contin
B36: $F$18 | C36: G15 Awarded Qty | D36: 200 | E36: 200 | F36: Contin
B37: $F$19 | C37: Power Balance Penalty Awarded Qty | D37: 0 | E37: 0 | F37: Contin
B38: $K$3 | C38: Rest of System Awarded Qty | D38: 0 | E38: 0 | F38: Contin
B39: $K$4 | C39: G1 Awarded Qty | D39: 0 | E39: 0 | F39: Contin
B40: $K$5 | C40: G2 Awarded Qty | D40: 0 | E40: 0 | F40: Contin
B41: $K$6 | C41: G3 Awarded Qty | D41: 0 | E41: 0 | F41: Contin
B42: $K$7 | C42: G4 Awarded Qty | D42: 0 | E42: 0 | F42: Contin
B43: $K$8 | C43: G5 Awarded Qty | D43: 21 | E43: 21 | F43: Contin
B44: $K$9 | C44: G6 Awarded Qty | D44: 50 | E44: 50 | F44: Contin
B45: $K$10 | C45: G7 Awarded Qty | D45: 50 | E45: 50 | F45: Contin
B46: $K$11 | C46: G8 Awarded Qty | D46: 50 | E46: 50 | F46: Contin
B47: $K$12 | C47: G9 Awarded Qty | D47: 50 | E47: 50 | F47: Contin
B48: $K$13 | C48: G10 Awarded Qty | D48: 50 | E48: 50 | F48: Contin
B49: $K$14 | C49: G11 Awarded Qty | D49: 0 | E49: 0 | F49: Contin
B50: $K$15 | C50: G12 Awarded Qty | D50: 0 | E50: 0 | F50: Contin
B51: $K$16 | C51: G13 Awarded Qty | D51: 0 | E51: 0 | F51: Contin
B52: $K$17 | C52: G14 Awarded Qty | D52: 0 | E52: 0 | F52: Contin
B53: $K$18 | C53: G15 Awarded Qty | D53: 0 | E53: 0 | F53: Contin
B54: $P$3 | C54: Rest of System Awarded Qty | D54: 429 | E54: 429 | F54: Contin
B55: $P$4 | C55: G1 Awarded Qty | D55: 200 | E55: 200 | F55: Contin
B56: $P$5 | C56: G2 Awarded Qty | D56: 200 | E56: 200 | F56: Contin
B57: $P$6 | C57: G3 Awarded Qty | D57: 200 | E57: 200 | F57: Contin
B58: $P$7 | C58: G4 Awarded Qty | D58: 200 | E58: 200 | F58: Contin
B59: $P$8 | C59: G5 Awarded Qty | D59: 200 | E59: 200 | F59: Contin
B60: $P$9 | C60: G6 Awarded Qty | D60: 200 | E60: 200 | F60: Contin
B61: $P$10 | C61: G7 Awarded Qty | D61: 200 | E61: 200 | F61: Contin
B62: $P$11 | C62: G8 Awarded Qty | D62: 200 | E62: 200 | F62: Contin
B63: $P$12 | C63: G9 Awarded Qty | D63: 200 | E63: 200 | F63: Contin
B64: $P$13 | C64: G10 Awarded Qty | D64: 200 | E64: 200 | F64: Contin
B65: $P$14 | C65: G11 Awarded Qty | D65: 0 | E65: 0 | F65: Contin
B66: $P$15 | C66: G12 Awarded Qty | D66: 0 | E66: 0 | F66: Contin
B67: $P$16 | C67: G13 Awarded Qty | D67: 0 | E67: 0 | F67: Contin
B68: $P$17 | C68: G14 Awarded Qty | D68: 0 | E68: 0 | F68: Contin
B69: $P$18 | C69: G15 Awarded Qty | D69: 0 | E69: 0 | F69: Contin
B70: $U$3 | C70: Rest of System Awarded Qty | D70: 0 | E70: 0 | F70: Contin
B71: $U$4 | C71: G1 Awarded Qty | D71: 0 | E71: 0 | F71: Contin
B72: $U$5 | C72: G2 Awarded Qty | D72: 0 | E72: 0 | F72: Contin
B73: $U$6 | C73: G3 Awarded Qty | D73: 0 | E73: 0 | F73: Contin
B74: $U$7 | C74: G4 Awarded Qty | D74: 0 | E74: 0 | F74: Contin
B75: $U$8 | C75: G5 Awarded Qty | D75: 0 | E75: 0 | F75: Contin
B76: $U$9 | C76: G6 Awarded Qty | D76: 0 | E76: 0 | F76: Contin
B77: $U$10 | C77: G7 Awarded Qty | D77: 0 | E77: 0 | F77: Contin
B78: $U$11 | C78: G8 Awarded Qty | D78: 0 | E78: 0 | F78: Contin
B79: $U$12 | C79: G9 Awarded Qty | D79: 0 | E79: 0 | F79: Contin
B80: $U$13 | C80: G10 Awarded Qty | D80: 0 | E80: 0 | F80: Contin
B81: $U$14 | C81: G11 Awarded Qty | D81: 0 | E81: 0 | F81: Contin
B82: $U$15 | C82: G12 Awarded Qty | D82: 0 | E82: 0 | F82: Contin
B83: $U$16 | C83: G13 Awarded Qty | D83: 0 | E83: 0 | F83: Contin
B84: $U$17 | C84: G14 Awarded Qty | D84: 0 | E84: 0 | F84: Contin
B85: $U$18 | C85: G15 Awarded Qty | D85: 300 | E85: 300 | F85: Contin
B86: $Z$3 | C86: Rest of System Awarded Qty | D86: 0 | E86: 0 | F86: Contin
B87: $Z$4 | C87: G1 Awarded Qty | D87: 0 | E87: 0 | F87: Contin
B88: $Z$5 | C88: G2 Awarded Qty | D88: 0 | E88: 0 | F88: Contin
B89: $Z$6 | C89: G3 Awarded Qty | D89: 0 | E89: 0 | F89: Contin
B90: $Z$7 | C90: G4 Awarded Qty | D90: 0 | E90: 0 | F90: Contin
B91: $Z$8 | C91: G5 Awarded Qty | D91: 0 | E91: 0 | F91: Contin
B92: $Z$9 | C92: G6 Awarded Qty | D92: 0 | E92: 0 | F92: Contin
B93: $Z$10 | C93: G7 Awarded Qty | D93: 0 | E93: 0 | F93: Contin
B94: $Z$11 | C94: G8 Awarded Qty | D94: 0 | E94: 0 | F94: Contin
B95: $Z$12 | C95: G9 Awarded Qty | D95: 0 | E95: 0 | F95: Contin
B96: $Z$13 | C96: G10 Awarded Qty | D96: 0 | E96: 0 | F96: Contin
B97: $Z$14 | C97: G11 Awarded Qty | D97: 0 | E97: 0 | F97: Contin
B98: $Z$15 | C98: G12 Awarded Qty | D98: 0 | E98: 0 | F98: Contin
B99: $Z$16 | C99: G13 Awarded Qty | D99: 0 | E99: 0 | F99: Contin
B100: $Z$17 | C100: G14 Awarded Qty | D100: 0 | E100: 0 | F100: Contin
B101: $Z$18 | C101: G15 Awarded Qty | D101: 0 | E101: 0 | F101: Contin
B102: $K$25 | C102: Max RRS Demand Curve Qty Solution Qty | D102: 0 | E102: 0 | F102: Contin
B103: $K$26 | C103: Max ECRS Demand Curve Qty Solution Qty | D103: 0 | E103: 0 | F103: Contin
B104: $K$27 | C104: Max NSPIN Demand Curve Qty Solution Qty | D104: 0 | E104: 0 | F104: Contin
B105: $K$28 | C105: Solution Qty | D105: 0 | E105: 0 | F105: Contin
B106: $K$29 | C106: Objective Function Solution Qty | D106: 5 | E106: 5 | F106: Contin
B107: $K$30 | C107: Solution Qty | D107: 5 | E107: 5 | F107: Contin
B108: $K$31 | C108: Output Prices ($/MWh) Solution Qty | D108: 5 | E108: 5 | F108: Contin
B109: $K$32 | C109: Energy Solution Qty | D109: 5 | E109: 5 | F109: Contin
B110: $K$33 | C110: REGUP Solution Qty | D110: 2.5 | E110: 2.5 | F110: Contin
B111: $K$34 | C111: RRS Solution Qty | D111: 2.5 | E111: 2.5 | F111: Contin
B112: $P$25 | C112: Max RRS Demand Curve Qty Solution Qty | D112: 0 | E112: 0 | F112: Contin
B113: $P$26 | C113: Max ECRS Demand Curve Qty Solution Qty | D113: 0 | E113: 0 | F113: Contin
B114: $P$27 | C114: Max NSPIN Demand Curve Qty Solution Qty | D114: 0 | E114: 0 | F114: Contin
B115: $P$28 | C115: Solution Qty | D115: 110 | E115: 110 | F115: Contin
B116: $P$29 | C116: Objective Function Solution Qty | D116: 5 | E116: 5 | F116: Contin
B117: $P$30 | C117: Solution Qty | D117: 5 | E117: 5 | F117: Contin
B118: $P$31 | C118: Output Prices ($/MWh) Solution Qty | D118: 5 | E118: 5 | F118: Contin
B119: $P$32 | C119: Energy Solution Qty | D119: 5 | E119: 5 | F119: Contin
B120: $P$33 | C120: REGUP Solution Qty | D120: 2.5 | E120: 2.5 | F120: Contin
B121: $P$34 | C121: RRS Solution Qty | D121: 2.5 | E121: 2.5 | F121: Contin
B122: $U$25 | C122: Max RRS Demand Curve Qty Solution Qty | D122: 0 | E122: 0 | F122: Contin
B123: $U$26 | C123: Max ECRS Demand Curve Qty Solution Qty | D123: 0 | E123: 0 | F123: Contin
B124: $U$27 | C124: Max NSPIN Demand Curve Qty Solution Qty | D124: 95 | E124: 95 | F124: Contin
B125: $U$28 | C125: Solution Qty | D125: 113 | E125: 113 | F125: Contin
B126: $U$29 | C126: Objective Function Solution Qty | D126: 100 | E126: 100 | F126: Contin
B127: $U$30 | C127: Solution Qty | D127: 64 | E127: 64 | F127: Contin
B128: $U$31 | C128: Output Prices ($/MWh) Solution Qty | D128: 79 | E128: 79 | F128: Contin
B129: $U$32 | C129: Energy Solution Qty | D129: 81 | E129: 81 | F129: Contin
B130: $U$33 | C130: REGUP Solution Qty | D130: 68 | E130: 68 | F130: Contin
B131: $U$34 | C131: RRS Solution Qty | D131: 42 | E131: 42 | F131: Contin
B132: $Z$25 | C132: Max RRS Demand Curve Qty Solution Qty | D132: 151.9 | E132: 151.9 | F132: Contin
B133: $Z$26 | C133: Max ECRS Demand Curve Qty Solution Qty | D133: 201 | E133: 201 | F133: Contin
B134: $Z$27 | C134: Max NSPIN Demand Curve Qty Solution Qty | D134: 117 | E134: 117 | F134: Contin
B135: $Z$28 | C135: Solution Qty | D135: 169 | E135: 169 | F135: Contin
B136: $Z$29 | C136: Objective Function Solution Qty | D136: 86 | E136: 86 | F136: Contin
B137: $Z$30 | C137: Solution Qty | D137: 162 | E137: 162 | F137: Contin
B138: $Z$31 | C138: Output Prices ($/MWh) Solution Qty | D138: 210 | E138: 210 | F138: Contin
B139: $Z$32 | C139: Energy Solution Qty | D139: 215 | E139: 215 | F139: Contin
B140: $Z$33 | C140: REGUP Solution Qty | D140: 330 | E140: 330 | F140: Contin
B141: $Z$34 | C141: RRS Solution Qty | D141: 276 | E141: 276 | F141: Contin
B142: $Z$35 | C142: ECRS Solution Qty | D142: 362 | E142: 362 | F142: Contin
B143: $Z$36 | C143: NSPIN Solution Qty | D143: 419 | E143: 419 | F143: Contin
B144: $Z$37 | C144: ECRS Awarded + Shortage Qty Solution Qty | D144: 582 | E144: 582 | F144: Contin
B145: $Z$38 | C145: * Example does not accont for ECRS being carried by Load Resources Solution Qty | D145: 2917 | E145: 2917 | F145: Contin
B146: $Z$39 | C146: Solution Qty | D146: 0.1 | E146: 0.1 | F146: Contin
A149: Constraints
B150: Cell | C150: Name | D150: Cell Value | E150: Formula | F150: Status | G150: Slack
B151: $AC$3 | C151: Rest of System Total Awarded Capacity | D151: 50000 | E151: $AC$3<=$C$3 | F151: Binding | G151: 0
B152: $AC$4 | C152: G1 Total Awarded Capacity | D152: 1000 | E152: $AC$4<=$C$4 | F152: Binding | G152: 0
B153: $AC$5 | C153: G2 Total Awarded Capacity | D153: 1000 | E153: $AC$5<=$C$5 | F153: Binding | G153: 0
B154: $AC$6 | C154: G3 Total Awarded Capacity | D154: 1000 | E154: $AC$6<=$C$6 | F154: Binding | G154: 0
B155: $AC$7 | C155: G4 Total Awarded Capacity | D155: 1000 | E155: $AC$7<=$C$7 | F155: Binding | G155: 0
B156: $AC$8 | C156: G5 Total Awarded Capacity | D156: 1000 | E156: $AC$8<=$C$8 | F156: Binding | G156: 0
B157: $AC$9 | C157: G6 Total Awarded Capacity | D157: 1000 | E157: $AC$9<=$C$9 | F157: Binding | G157: 0
B158: $AC$10 | C158: G7 Total Awarded Capacity | D158: 1000 | E158: $AC$10<=$C$10 | F158: Binding | G158: 0
B159: $AC$11 | C159: G8 Total Awarded Capacity | D159: 1000 | E159: $AC$11<=$C$11 | F159: Binding | G159: 0
B160: $AC$12 | C160: G9 Total Awarded Capacity | D160: 1000 | E160: $AC$12<=$C$12 | F160: Binding | G160: 0
B161: $AC$13 | C161: G10 Total Awarded Capacity | D161: 1000 | E161: $AC$13<=$C$13 | F161: Binding | G161: 0
B162: $AC$14 | C162: G11 Total Awarded Capacity | D162: 500 | E162: $AC$14<=$C$14 | F162: Binding | G162: 0
B163: $AC$15 | C163: G12 Total Awarded Capacity | D163: 500 | E163: $AC$15<=$C$15 | F163: Binding | G163: 0
B164: $AC$16 | C164: G13 Total Awarded Capacity | D164: 500 | E164: $AC$16<=$C$16 | F164: Binding | G164: 0
B165: $AC$17 | C165: G14 Total Awarded Capacity | D165: 500 | E165: $AC$17<=$C$17 | F165: Binding | G165: 0
B166: $AC$18 | C166: G15 Total Awarded Capacity | D166: 500 | E166: $AC$18<=$C$18 | F166: Binding | G166: 0
B167: $AC$19 | C167: Power Balance Penalty Total Awarded Capacity | D167: 0 | E167: $AC$19<=$C$19 | F167: Not Binding | G167: 10000
B168: $F$20 | C168: Totals with Power Balance Penalty Awarded Qty | D168: 59500 | E168: $F$20=$B$23 | F168: Binding | G168: 0
B169: $K$37 | C169: REGUP Awarded + Shortage Qty Solution Qty | D169: 296 | E169: $K$37=$B$24 | F169: Binding | G169: 0
B170: $P$37 | C170: RRS Awarded + Shortage Qty Solution Qty | D170: 2564 | E170: $P$37=$B$25 | F170: Binding | G170: 0
B171: $U$37 | C171: ECRS Awarded + Shortage Qty Solution Qty | D171: 942 | E171: $U$37=$B$26 | F171: Binding | G171: 0
B172: $Z$42 | C172: NSPIN Awarded + Shortage Qty Solution Qty | D172: 6198 | E172: $Z$42=$B$27 | F172: Binding | G172: 0
B173: $F$3 | C173: Rest of System Awarded Qty | D173: 49571 | E173: $F$3<=$D$3 | F173: Not Binding | G173: 429
B174: $F$4 | C174: G1 Awarded Qty | D174: 800 | E174: $F$4<=$D$4 | F174: Not Binding | G174: 200
B175: $F$5 | C175: G2 Awarded Qty | D175: 800 | E175: $F$5<=$D$5 | F175: Not Binding | G175: 200
B176: $F$6 | C176: G3 Awarded Qty | D176: 800 | E176: $F$6<=$D$6 | F176: Not Binding | G176: 200
B177: $F$7 | C177: G4 Awarded Qty | D177: 800 | E177: $F$7<=$D$7 | F177: Not Binding | G177: 200
B178: $F$8 | C178: G5 Awarded Qty | D178: 779 | E178: $F$8<=$D$8 | F178: Not Binding | G178: 221
B179: $F$9 | C179: G6 Awarded Qty | D179: 750 | E179: $F$9<=$D$9 | F179: Not Binding | G179: 250
B180: $F$10 | C180: G7 Awarded Qty | D180: 750 | E180: $F$10<=$D$10 | F180: Not Binding | G180: 250
B181: $F$11 | C181: G8 Awarded Qty | D181: 750 | E181: $F$11<=$D$11 | F181: Not Binding | G181: 250
B182: $F$12 | C182: G9 Awarded Qty | D182: 750 | E182: $F$12<=$D$12 | F182: Not Binding | G182: 250
B183: $F$13 | C183: G10 Awarded Qty | D183: 750 | E183: $F$13<=$D$13 | F183: Not Binding | G183: 250
B184: $F$14 | C184: G11 Awarded Qty | D184: 500 | E184: $F$14<=$D$14 | F184: Binding | G184: 0
B185: $F$15 | C185: G12 Awarded Qty | D185: 500 | E185: $F$15<=$D$15 | F185: Binding | G185: 0
B186: $F$16 | C186: G13 Awarded Qty | D186: 500 | E186: $F$16<=$D$16 | F186: Binding | G186: 0
B187: $F$17 | C187: G14 Awarded Qty | D187: 500 | E187: $F$17<=$D$17 | F187: Binding | G187: 0
B188: $F$18 | C188: G15 Awarded Qty | D188: 200 | E188: $F$18<=$D$18 | F188: Not Binding | G188: 300
B189: $F$19 | C189: Power Balance Penalty Awarded Qty | D189: 0 | E189: $F$19<=$D$19 | F189: Not Binding | G189: 10000
B190: $K$3 | C190: Rest of System Awarded Qty | D190: 0 | E190: $K$3<=$I$3 | F190: Not Binding | G190: 2500
B191: $P$3 | C191: Rest of System Awarded Qty | D191: 429 | E191: $P$3<=$N$3 | F191: Not Binding | G191: 9571
B192: $U$3 | C192: Rest of System Awarded Qty | D192: 0 | E192: $U$3<=$S$3 | F192: Not Binding | G192: 50000
B193: $Z$3 | C193: Rest of System Awarded Qty | D193: 0 | E193: $Z$3<=$X$3 | F193: Not Binding | G193: 50000
B194: $K$4 | C194: G1 Awarded Qty | D194: 0 | E194: $K$4<=$I$4 | F194: Not Binding | G194: 50
B195: $P$4 | C195: G1 Awarded Qty | D195: 200 | E195: $P$4<=$N$4 | F195: Binding | G195: 0
B196: $U$4 | C196: G1 Awarded Qty | D196: 0 | E196: $U$4<=$S$4 | F196: Not Binding | G196: 1000
B197: $Z$4 | C197: G1 Awarded Qty | D197: 0 | E197: $Z$4<=$X$4 | F197: Not Binding | G197: 1000
B198: $K$5 | C198: G2 Awarded Qty | D198: 0 | E198: $K$5<=$I$5 | F198: Not Binding | G198: 50
B199: $P$5 | C199: G2 Awarded Qty | D199: 200 | E199: $P$5<=$N$5 | F199: Binding | G199: 0
B200: $U$5 | C200: G2 Awarded Qty | D200: 0 | E200: $U$5<=$S$5 | F200: Not Binding | G200: 1000
B201: $Z$5 | C201: G2 Awarded Qty | D201: 0 | E201: $Z$5<=$X$5 | F201: Not Binding | G201: 1000
B202: $K$6 | C202: G3 Awarded Qty | D202: 0 | E202: $K$6<=$I$6 | F202: Not Binding | G202: 50
B203: $P$6 | C203: G3 Awarded Qty | D203: 200 | E203: $P$6<=$N$6 | F203: Binding | G203: 0
B204: $U$6 | C204: G3 Awarded Qty | D204: 0 | E204: $U$6<=$S$6 | F204: Not Binding | G204: 1000
B205: $Z$6 | C205: G3 Awarded Qty | D205: 0 | E205: $Z$6<=$X$6 | F205: Not Binding | G205: 1000
B206: $K$7 | C206: G4 Awarded Qty | D206: 0 | E206: $K$7<=$I$7 | F206: Not Binding | G206: 50
... 92 more rows

Sheet Sensitivity Report
A1: Microsoft Excel 15.0 Sensitivity Report
A2: Worksheet: [Real-Time_Co-optimization_-_Automated_Scenario_Analysis_-_Update_Ver5_2.xlsm]Optimization Engine
A3: Report Created: 7/16/2019 3:08:09 PM
A6: Variable Cells
D7: Final | E7: Reduced | F7: Objective | G7: Allowable | H7: Allowable
B8: Cell | C8: Name | D8: Value | E8: Cost | F8: Coefficient | G8: Increase | H8: Decrease
B9: $F$3 | C9: Rest of System Awarded Qty | D9: 49571 | E9: 0 | F9: 25 | G9: 5 | H9: 25
B10: $F$4 | C10: G1 Awarded Qty | D10: 800 | E10: 0 | F10: 30 | G10: 20 | H10: 5
B11: $F$5 | C11: G2 Awarded Qty | D11: 800 | E11: 0 | F11: 35 | G11: 15 | H11: 10
B12: $F$6 | C12: G3 Awarded Qty | D12: 800 | E12: 0 | F12: 40 | G12: 10 | H12: 15
B13: $F$7 | C13: G4 Awarded Qty | D13: 800 | E13: 0 | F13: 45 | G13: 5 | H13: 20
B14: $F$8 | C14: G5 Awarded Qty | D14: 779 | E14: 0 | F14: 50 | G14: 5 | H14: 5
B15: $F$9 | C15: G6 Awarded Qty | D15: 750 | E15: 0 | F15: 55 | G15: 945 | H15: 5
B16: $F$10 | C16: G7 Awarded Qty | D16: 750 | E16: 0 | F16: 60 | G16: 940 | H16: 10
B17: $F$11 | C17: G8 Awarded Qty | D17: 750 | E17: 0 | F17: 65 | G17: 935 | H17: 15
B18: $F$12 | C18: G9 Awarded Qty | D18: 750 | E18: 0 | F18: 70 | G18: 930 | H18: 20
B19: $F$13 | C19: G10 Awarded Qty | D19: 750 | E19: 0 | F19: 75 | G19: 925 | H19: 25
B20: $F$14 | C20: G11 Awarded Qty | D20: 500 | E20: 0 | F20: 80 | G20: 30 | H20: 1e+30
B21: $F$15 | C21: G12 Awarded Qty | D21: 500 | E21: 0 | F21: 100 | G21: 50 | H21: 1e+30
B22: $F$16 | C22: G13 Awarded Qty | D22: 500 | E22: 0 | F22: 150 | G22: 100 | H22: 1e+30
B23: $F$17 | C23: G14 Awarded Qty | D23: 500 | E23: 0 | F23: 250 | G23: 200 | H23: 1e+30
B24: $F$18 | C24: G15 Awarded Qty | D24: 200 | E24: 0 | F24: 1000 | G24: 25 | H24: 225
B25: $F$19 | C25: Power Balance Penalty Awarded Qty | D25: 0 | E25: 6476 | F25: 11001 | G25: 1e+30 | H25: 6476
B26: $K$3 | C26: Rest of System Awarded Qty | D26: 0 | E26: 25 | F26: 0 | G26: 1e+30 | H26: 25
B27: $K$4 | C27: G1 Awarded Qty | D27: 0 | E27: 20 | F27: 0 | G27: 1e+30 | H27: 20
B28: $K$5 | C28: G2 Awarded Qty | D28: 0 | E28: 15 | F28: 0 | G28: 1e+30 | H28: 15
B29: $K$6 | C29: G3 Awarded Qty | D29: 0 | E29: 10 | F29: 0 | G29: 1e+30 | H29: 10
B30: $K$7 | C30: G4 Awarded Qty | D30: 0 | E30: 5 | F30: 0 | G30: 1e+30 | H30: 5
B31: $K$8 | C31: G5 Awarded Qty | D31: 21 | E31: 0 | F31: 0 | G31: 5 | H31: 5
B32: $K$9 | C32: G6 Awarded Qty | D32: 50 | E32: -5 | F32: 0 | G32: 5 | H32: 1e+30
B33: $K$10 | C33: G7 Awarded Qty | D33: 50 | E33: -10 | F33: 0 | G33: 10 | H33: 1e+30
B34: $K$11 | C34: G8 Awarded Qty | D34: 50 | E34: -15 | F34: 0 | G34: 15 | H34: 1e+30
B35: $K$12 | C35: G9 Awarded Qty | D35: 50 | E35: -20 | F35: 0 | G35: 20 | H35: 1e+30
B36: $K$13 | C36: G10 Awarded Qty | D36: 50 | E36: -25 | F36: 0 | G36: 25 | H36: 1e+30
B37: $K$14 | C37: G11 Awarded Qty | D37: 0 | E37: -30 | F37: 0 | G37: 1e+30 | H37: 30
B38: $K$15 | C38: G12 Awarded Qty | D38: 0 | E38: -50 | F38: 0 | G38: 1e+30 | H38: 50
B39: $K$16 | C39: G13 Awarded Qty | D39: 0 | E39: -100 | F39: 0 | G39: 1e+30 | H39: 100
B40: $K$17 | C40: G14 Awarded Qty | D40: 0 | E40: -200 | F40: 0 | G40: 1e+30 | H40: 200
B41: $K$18 | C41: G15 Awarded Qty | D41: 0 | E41: -950 | F41: 0 | G41: 1e+30 | H41: 950
B42: $P$3 | C42: Rest of System Awarded Qty | D42: 429 | E42: 0 | F42: 0 | G42: 25 | H42: 5
B43: $P$4 | C43: G1 Awarded Qty | D43: 200 | E43: -5 | F43: 0 | G43: 5 | H43: 1e+30
B44: $P$5 | C44: G2 Awarded Qty | D44: 200 | E44: -10 | F44: 0 | G44: 10 | H44: 1e+30
B45: $P$6 | C45: G3 Awarded Qty | D45: 200 | E45: -15 | F45: 0 | G45: 15 | H45: 1e+30
B46: $P$7 | C46: G4 Awarded Qty | D46: 200 | E46: -20 | F46: 0 | G46: 20 | H46: 1e+30
B47: $P$8 | C47: G5 Awarded Qty | D47: 200 | E47: -25 | F47: 0 | G47: 25 | H47: 1e+30
B48: $P$9 | C48: G6 Awarded Qty | D48: 200 | E48: -30 | F48: 0 | G48: 30 | H48: 1e+30
B49: $P$10 | C49: G7 Awarded Qty | D49: 200 | E49: -35 | F49: 0 | G49: 35 | H49: 1e+30
B50: $P$11 | C50: G8 Awarded Qty | D50: 200 | E50: -40 | F50: 0 | G50: 40 | H50: 1e+30
B51: $P$12 | C51: G9 Awarded Qty | D51: 200 | E51: -45 | F51: 0 | G51: 45 | H51: 1e+30
B52: $P$13 | C52: G10 Awarded Qty | D52: 200 | E52: -50 | F52: 0 | G52: 50 | H52: 1e+30
B53: $P$14 | C53: G11 Awarded Qty | D53: 0 | E53: -55 | F53: 0 | G53: 1e+30 | H53: 55
B54: $P$15 | C54: G12 Awarded Qty | D54: 0 | E54: -75 | F54: 0 | G54: 1e+30 | H54: 75
B55: $P$16 | C55: G13 Awarded Qty | D55: 0 | E55: -125 | F55: 0 | G55: 1e+30 | H55: 125
B56: $P$17 | C56: G14 Awarded Qty | D56: 0 | E56: -225 | F56: 0 | G56: 1e+30 | H56: 225
B57: $P$18 | C57: G15 Awarded Qty | D57: 0 | E57: -975 | F57: 0 | G57: 1e+30 | H57: 975
B58: $U$3 | C58: Rest of System Awarded Qty | D58: 0 | E58: 975 | F58: 0 | G58: 1e+30 | H58: 975
B59: $U$4 | C59: G1 Awarded Qty | D59: 0 | E59: 970 | F59: 0 | G59: 1e+30 | H59: 970
B60: $U$5 | C60: G2 Awarded Qty | D60: 0 | E60: 965 | F60: 0 | G60: 1e+30 | H60: 965
B61: $U$6 | C61: G3 Awarded Qty | D61: 0 | E61: 960 | F61: 0 | G61: 1e+30 | H61: 960
B62: $U$7 | C62: G4 Awarded Qty | D62: 0 | E62: 955 | F62: 0 | G62: 1e+30 | H62: 955
B63: $U$8 | C63: G5 Awarded Qty | D63: 0 | E63: 950 | F63: 0 | G63: 1e+30 | H63: 950
B64: $U$9 | C64: G6 Awarded Qty | D64: 0 | E64: 945 | F64: 0 | G64: 1e+30 | H64: 945
B65: $U$10 | C65: G7 Awarded Qty | D65: 0 | E65: 940 | F65: 0 | G65: 1e+30 | H65: 940
B66: $U$11 | C66: G8 Awarded Qty | D66: 0 | E66: 935 | F66: 0 | G66: 1e+30 | H66: 935
B67: $U$12 | C67: G9 Awarded Qty | D67: 0 | E67: 930 | F67: 0 | G67: 1e+30 | H67: 930
B68: $U$13 | C68: G10 Awarded Qty | D68: 0 | E68: 925 | F68: 0 | G68: 1e+30 | H68: 925
B69: $U$14 | C69: G11 Awarded Qty | D69: 0 | E69: 920 | F69: 0 | G69: 1e+30 | H69: 920
B70: $U$15 | C70: G12 Awarded Qty | D70: 0 | E70: 900 | F70: 0 | G70: 1e+30 | H70: 900
B71: $U$16 | C71: G13 Awarded Qty | D71: 0 | E71: 850 | F71: 0 | G71: 1e+30 | H71: 850
B72: $U$17 | C72: G14 Awarded Qty | D72: 0 | E72: 750 | F72: 0 | G72: 1e+30 | H72: 750
B73: $U$18 | C73: G15 Awarded Qty | D73: 300 | E73: 0 | F73: 0 | G73: 225 | H73: 25
B74: $Z$3 | C74: Rest of System Awarded Qty | D74: 0 | E74: 3000 | F74: 0 | G74: 1e+30 | H74: 3000
B75: $Z$4 | C75: G1 Awarded Qty | D75: 0 | E75: 2995 | F75: 0 | G75: 1e+30 | H75: 2995
B76: $Z$5 | C76: G2 Awarded Qty | D76: 0 | E76: 2990 | F76: 0 | G76: 1e+30 | H76: 2990
B77: $Z$6 | C77: G3 Awarded Qty | D77: 0 | E77: 2985 | F77: 0 | G77: 1e+30 | H77: 2985
B78: $Z$7 | C78: G4 Awarded Qty | D78: 0 | E78: 2980 | F78: 0 | G78: 1e+30 | H78: 2980
B79: $Z$8 | C79: G5 Awarded Qty | D79: 0 | E79: 2975 | F79: 0 | G79: 1e+30 | H79: 2975
B80: $Z$9 | C80: G6 Awarded Qty | D80: 0 | E80: 2970 | F80: 0 | G80: 1e+30 | H80: 2970
B81: $Z$10 | C81: G7 Awarded Qty | D81: 0 | E81: 2965 | F81: 0 | G81: 1e+30 | H81: 2965
B82: $Z$11 | C82: G8 Awarded Qty | D82: 0 | E82: 2960 | F82: 0 | G82: 1e+30 | H82: 2960
B83: $Z$12 | C83: G9 Awarded Qty | D83: 0 | E83: 2955 | F83: 0 | G83: 1e+30 | H83: 2955
B84: $Z$13 | C84: G10 Awarded Qty | D84: 0 | E84: 2950 | F84: 0 | G84: 1e+30 | H84: 2950
B85: $Z$14 | C85: G11 Awarded Qty | D85: 0 | E85: 2945 | F85: 0 | G85: 1e+30 | H85: 2945
B86: $Z$15 | C86: G12 Awarded Qty | D86: 0 | E86: 2925 | F86: 0 | G86: 1e+30 | H86: 2925
B87: $Z$16 | C87: G13 Awarded Qty | D87: 0 | E87: 2875 | F87: 0 | G87: 1e+30 | H87: 2875
B88: $Z$17 | C88: G14 Awarded Qty | D88: 0 | E88: 2775 | F88: 0 | G88: 1e+30 | H88: 2775
B89: $Z$18 | C89: G15 Awarded Qty | D89: 0 | E89: 2025 | F89: 0 | G89: 1e+30 | H89: 2025
B90: $K$25 | C90: Max RRS Demand Curve Qty Solution Qty | D90: 0 | E90: 4525 | F90: 9000 | G90: 1e+30 | H90: 4525
B91: $K$26 | C91: Max ECRS Demand Curve Qty Solution Qty | D91: 0 | E91: 2025 | F91: 6500 | G91: 1e+30 | H91: 2025
B92: $K$27 | C92: Max NSPIN Demand Curve Qty Solution Qty | D92: 0 | E92: 1025 | F92: 5500 | G92: 1e+30 | H92: 1025
B93: $K$28 | C93: Solution Qty | D93: 0 | E93: 25 | F93: 4500 | G93: 1e+30 | H93: 25
B94: $K$29 | C94: Objective Function Solution Qty | D94: 5 | E94: -2225 | F94: 2250 | G94: 2225 | H94: 1e+30
B95: $K$30 | C95: Solution Qty | D95: 5 | E95: -3475 | F95: 1000 | G95: 3475 | H95: 1e+30
B96: $K$31 | C96: Output Prices ($/MWh) Solution Qty | D96: 5 | E96: -3975 | F96: 500 | G96: 3975 | H96: 1e+30
B97: $K$32 | C97: Energy Solution Qty | D97: 5 | E97: -4075 | F97: 400 | G97: 4075 | H97: 1e+30
B98: $K$33 | C98: REGUP Solution Qty | D98: 2.5 | E98: -4175 | F98: 300 | G98: 4175 | H98: 1e+30
B99: $K$34 | C99: RRS Solution Qty | D99: 2.5 | E99: -4225 | F99: 250 | G99: 4225 | H99: 1e+30
B100: $P$25 | C100: Max RRS Demand Curve Qty Solution Qty | D100: 0 | E100: 4500 | F100: 9000 | G100: 1e+30 | H100: 4500
B101: $P$26 | C101: Max ECRS Demand Curve Qty Solution Qty | D101: 0 | E101: 2000 | F101: 6500 | G101: 1e+30 | H101: 2000
B102: $P$27 | C102: Max NSPIN Demand Curve Qty Solution Qty | D102: 0 | E102: 1000 | F102: 5500 | G102: 1e+30 | H102: 1000
B103: $P$28 | C103: Solution Qty | D103: 110 | E103: 0 | F103: 4500 | G103: 25 | H103: 25
B104: $P$29 | C104: Objective Function Solution Qty | D104: 5 | E104: -2250 | F104: 2250 | G104: 2250 | H104: 1e+30
B105: $P$30 | C105: Solution Qty | D105: 5 | E105: -3500 | F105: 1000 | G105: 3500 | H105: 1e+30
B106: $P$31 | C106: Output Prices ($/MWh) Solution Qty | D106: 5 | E106: -4000 | F106: 500 | G106: 4000 | H106: 1e+30
B107: $P$32 | C107: Energy Solution Qty | D107: 5 | E107: -4100 | F107: 400 | G107: 4100 | H107: 1e+30
B108: $P$33 | C108: REGUP Solution Qty | D108: 2.5 | E108: -4200 | F108: 300 | G108: 4200 | H108: 1e+30
B109: $P$34 | C109: RRS Solution Qty | D109: 2.5 | E109: -4250 | F109: 250 | G109: 4250 | H109: 1e+30
B110: $U$25 | C110: Max RRS Demand Curve Qty Solution Qty | D110: 0 | E110: 475 | F110: 4000 | G110: 1e+30 | H110: 475
B111: $U$26 | C111: Max ECRS Demand Curve Qty Solution Qty | D111: 0 | E111: 225 | F111: 3750 | G111: 1e+30 | H111: 225
B112: $U$27 | C112: Max NSPIN Demand Curve Qty Solution Qty | D112: 95 | E112: -25 | F112: 3500 | G112: 25 | H112: 1e+30
B113: $U$28 | C113: Solution Qty | D113: 113 | E113: -275 | F113: 3250 | G113: 275 | H113: 1e+30
B114: $U$29 | C114: Objective Function Solution Qty | D114: 100 | E114: -525 | F114: 3000 | G114: 525 | H114: 1e+30
B115: $U$30 | C115: Solution Qty | D115: 64 | E115: -775 | F115: 2750 | G115: 775 | H115: 1e+30
B116: $U$31 | C116: Output Prices ($/MWh) Solution Qty | D116: 79 | E116: -1025 | F116: 2500 | G116: 1025 | H116: 1e+30
B117: $U$32 | C117: Energy Solution Qty | D117: 81 | E117: -1275 | F117: 2250 | G117: 1275 | H117: 1e+30
B118: $U$33 | C118: REGUP Solution Qty | D118: 68 | E118: -1525 | F118: 2000 | G118: 1525 | H118: 1e+30
B119: $U$34 | C119: RRS Solution Qty | D119: 42 | E119: -1775 | F119: 1750 | G119: 1775 | H119: 1e+30
B120: $Z$25 | C120: Max RRS Demand Curve Qty Solution Qty | D120: 151.9 | E120: 0 | F120: 1500 | G120: 2025 | H120: 250
B121: $Z$26 | C121: Max ECRS Demand Curve Qty Solution Qty | D121: 201 | E121: -250 | F121: 1250 | G121: 250 | H121: 1e+30
B122: $Z$27 | C122: Max NSPIN Demand Curve Qty Solution Qty | D122: 117 | E122: -500 | F122: 1000 | G122: 500 | H122: 1e+30
B123: $Z$28 | C123: Solution Qty | D123: 169 | E123: -750 | F123: 750 | G123: 750 | H123: 1e+30
B124: $Z$29 | C124: Objective Function Solution Qty | D124: 86 | E124: -875 | F124: 625 | G124: 875 | H124: 1e+30
B125: $Z$30 | C125: Solution Qty | D125: 162 | E125: -1000 | F125: 500 | G125: 1000 | H125: 1e+30
B126: $Z$31 | C126: Output Prices ($/MWh) Solution Qty | D126: 210 | E126: -1125 | F126: 375 | G126: 1125 | H126: 1e+30
B127: $Z$32 | C127: Energy Solution Qty | D127: 215 | E127: -1250 | F127: 250 | G127: 1250 | H127: 1e+30
B128: $Z$33 | C128: REGUP Solution Qty | D128: 330 | E128: -1350 | F128: 150 | G128: 1350 | H128: 1e+30
B129: $Z$34 | C129: RRS Solution Qty | D129: 276 | E129: -1400 | F129: 100 | G129: 1400 | H129: 1e+30
B130: $Z$35 | C130: ECRS Solution Qty | D130: 362 | E130: -1450 | F130: 50 | G130: 1450 | H130: 1e+30
B131: $Z$36 | C131: NSPIN Solution Qty | D131: 419 | E131: -1475 | F131: 25 | G131: 1475 | H131: 1e+30
B132: $Z$37 | C132: ECRS Awarded + Shortage Qty Solution Qty | D132: 582 | E132: -1490 | F132: 10 | G132: 1490 | H132: 1e+30
B133: $Z$38 | C133: * Example does not accont for ECRS being carried by Load Resources Solution Qty | D133: 2917 | E133: -1499.99 | F133: 0.009999999995 | G133: 1499.99 | H133: 1e+30
B134: $Z$39 | C134: Solution Qty | D134: 0.1 | E134: -1500 | F134: 0 | G134: 1500 | H134: 1e+30
A136: Constraints
D137: Final | E137: Shadow | F137: Constraint | G137: Allowable | H137: Allowable
B138: Cell | C138: Name | D138: Value | E138: Price | F138: R.H. Side | G138: Increase | H138: Decrease
B139: $AC$3 | C139: Rest of System Total Awarded Capacity | D139: 50000 | E139: -4500 | F139: 50000 | G139: 110 | H139: 259
B140: $AC$4 | C140: G1 Total Awarded Capacity | D140: 1000 | E140: -4495 | F140: 1000 | G140: 110 | H140: 259
B141: $AC$5 | C141: G2 Total Awarded Capacity | D141: 1000 | E141: -4490 | F141: 1000 | G141: 110 | H141: 259
B142: $AC$6 | C142: G3 Total Awarded Capacity | D142: 1000 | E142: -4485 | F142: 1000 | G142: 110 | H142: 259
B143: $AC$7 | C143: G4 Total Awarded Capacity | D143: 1000 | E143: -4480 | F143: 1000 | G143: 110 | H143: 259
B144: $AC$8 | C144: G5 Total Awarded Capacity | D144: 1000 | E144: -4475 | F144: 1000 | G144: 110 | H144: 259
B145: $AC$9 | C145: G6 Total Awarded Capacity | D145: 1000 | E145: -4470 | F145: 1000 | G145: 110 | H145: 259
B146: $AC$10 | C146: G7 Total Awarded Capacity | D146: 1000 | E146: -4465 | F146: 1000 | G146: 110 | H146: 259
B147: $AC$11 | C147: G8 Total Awarded Capacity | D147: 1000 | E147: -4460 | F147: 1000 | G147: 110 | H147: 259
B148: $AC$12 | C148: G9 Total Awarded Capacity | D148: 1000 | E148: -4455 | F148: 1000 | G148: 110 | H148: 259
B149: $AC$13 | C149: G10 Total Awarded Capacity | D149: 1000 | E149: -4450 | F149: 1000 | G149: 110 | H149: 259
B150: $AC$14 | C150: G11 Total Awarded Capacity | D150: 500 | E150: -4445 | F150: 500 | G150: 0 | H150: 259
B151: $AC$15 | C151: G12 Total Awarded Capacity | D151: 500 | E151: -4425 | F151: 500 | G151: 0 | H151: 259
B152: $AC$16 | C152: G13 Total Awarded Capacity | D152: 500 | E152: -4375 | F152: 500 | G152: 0 | H152: 259
B153: $AC$17 | C153: G14 Total Awarded Capacity | D153: 500 | E153: -4275 | F153: 500 | G153: 0 | H153: 259
B154: $AC$18 | C154: G15 Total Awarded Capacity | D154: 500 | E154: -3525 | F154: 500 | G154: 110 | H154: 200
B155: $AC$19 | C155: Power Balance Penalty Total Awarded Capacity | D155: 0 | E155: 0 | F155: 10000 | G155: 1e+30 | H155: 10000
B156: $F$20 | C156: Totals with Power Balance Penalty Awarded Qty | D156: 59500 | E156: 4525 | F156: 59500 | G156: 259 | H156: 110
B157: $K$37 | C157: REGUP Awarded + Shortage Qty Solution Qty | D157: 296 | E157: 4475 | F157: 296 | G157: 29 | H157: 21
B158: $P$37 | C158: RRS Awarded + Shortage Qty Solution Qty | D158: 2564 | E158: 4500 | F158: 2564 | G158: 259 | H158: 110
B159: $U$37 | C159: ECRS Awarded + Shortage Qty Solution Qty | D159: 942 | E159: 3525 | F159: 942 | G159: 200 | H159: 110
B160: $Z$42 | C160: NSPIN Awarded + Shortage Qty Solution Qty | D160: 6198 | E160: 1500 | F160: 6198 | G160: 0.1 | H160: 151.9
